bitfinex/quotes_ETHUSD_20241104
["timestamp","ask_amount","ask_price","bid_price","bid_amount"]
[1730689239741,4.02045,2487.3,2486.9,0.52860512]
[1730689240057,4.02045,2487.3,2486.9,0.04393375]
[1730689240654,4.02066,2487.2,2486.9,0.04393375]
[1730689240858,4.02086,2487.1,2486.9,0.04393375]
[1730689241060,4.02066,2487.2,2486.9,0.04393375]
[1730689241951,4.02076,2487.1,2486.9,0.04393375]
[1730689242154,4.02066,2487.2,2486.9,0.04393375]
[1730689242853,4.84324,2487.1,2486.9,0.04393375]
[1730689243168,1.70889,2487.1,2486.6,0.8022]
[1730689243494,1.70889,2487.1,2486.7,0.04128629]
[1730689243495,4.02135,2486.8,2486.7,0.04128629]
[1730689243817,4.02135,2486.8,2486.3,0.8022]
[1730689244022,4.02135,2486.8,2486.7,0.04128849]
[1730689244223,4.02107,2486.9,2486.3,0.8022]
[1730689244446,4.02107,2486.9,2486.7,0.04128849]
[1730689244647,4.02107,2486.9,2486.4,0.48243]
[1730689244861,4.02107,2486.9,2486.8,0.04118951]
[1730689245025,4.02123,2486.8,2486.4,0.48243]
[1730689245365,8.04205,2487.0,2486.4,0.48243]
[1730689245652,4.02102,2487.0,2486.5,0.530664]
[1730689245861,4.843,2487.3,2486.6,4.82365]
[1730689246020,4.843,2487.3,2486.6,8.84511]
[1730689246221,4.0207,2487.2,2486.7,0.9375774]
[1730689246523,4.843,2487.3,2486.6,8.8452]
[1730689246733,4.02027,2487.4,2486.9,0.8022]
[1730689246932,4.02052,2487.3,2486.9,0.8022]
[1730689247162,4.0205,2487.3,2486.9,0.8022]
[1730689247371,4.02058,2487.2,2486.9,0.8022]
[1730689247871,4.02058,2487.2,2486.7,0.8022]
[1730689248629,4.02037,2487.4,2486.8,4.5712]
[1730689248929,4.02037,2487.4,2486.9,0.53734]
[1730689250573,4.84275,2487.5,2486.9,0.53734]
[1730689250773,4.02068,2487.2,2486.7,0.8022]
[1730689251068,4.8427,2487.5,2486.8,4.02111]
[1730689251232,4.8427,2487.5,2486.9,4.02099]
[1730689251432,4.02011,2487.5,2487.0,0.80421]
[1730689251630,4.84238,2487.7,2487.0,4.82504]
[1730689251957,4.84237,2487.7,2487.2,0.8022]
[1730689252154,4.0202,2487.5,2487.2,0.8022]
[1730689252353,4.01994,2487.6,2487.2,0.8022]
[1730689252572,8.86225,2487.7,2487.2,0.8022]
[1730689252733,4.84237,2487.7,2487.2,1.364924]
[1730689253077,4.01996,2487.6,2487.2,1.364924]
[1730689253271,8.03986,2487.6,2487.2,0.8022]
[1730689253579,4.02026,2487.4,2487.2,0.8022]
[1730689254039,4.02044,2487.3,2486.9,0.8022]
[1730689254244,4.84291,2487.4,2486.9,0.8022]
[1730689254457,8.8633,2487.4,2486.9,0.8022]
[1730689254641,4.84289,2487.4,2486.9,0.8022]
[1730689254975,4.0206,2487.2,2486.6,0.8022]
[1730689255474,4.02036,2487.4,2486.8,4.0212]
[1730689255774,4.02036,2487.4,2486.9,0.8022]
[1730689255946,4.84245,2487.6,2486.9,0.8022]
[1730689256146,4.02012,2487.5,2487.0,0.884447]
[1730689256657,4.02052,2487.3,2487.0,0.884447]
[1730689256874,4.02022,2487.5,2486.9,0.8022]
[1730689257034,4.84256,2487.6,2486.9,4.82326]
[1730689257236,4.01984,2487.7,2487.1,0.8022]
[1730689257554,4.01984,2487.7,2487.1,1.686607]
[1730689257938,4.01971,2487.8,2487.1,1.686607]
[1730689258180,4.01991,2487.7,2487.1,1.686607]
[1730689259036,4.01993,2487.6,2487.1,1.686607]
[1730689259372,4.01987,2487.7,2487.1,1.686607]
[1730689259671,4.01993,2487.6,2487.2,0.5707357]
[1730689260281,0.8225,2487.6,2487.1,0.884407]
[1730689260432,0.8225,2487.6,2487.0,0.8022]
[1730689260634,4.02022,2487.5,2487.0,0.8022]
[1730689261038,4.02028,2487.4,2487.0,0.8022]
[1730689261668,2.53023187,2487.8,2487.2,0.8022]
[1730689261874,0.00251547,2488.0,2487.6,4.82205]
[1730689262075,0.00251547,2488.0,2487.7,0.482205]
[1730689262319,4.02180547,2488.0,2487.8,0.8022]
[1730689262512,0.00251547,2488.0,2487.8,0.8022]
[1730689262813,4.02180547,2488.0,2487.8,0.8022]
[1730689263200,0.00251547,2488.0,2487.8,0.8022]
[1730689263875,0.00251547,2488.0,2487.9,0.482196]
[1730689264071,0.00251547,2488.0,2487.8,0.8022]
[1730689265282,0.00251547,2488.0,2487.8,4.01959]
[1730689265473,0.00251547,2488.0,2487.9,4.82165]
[1730689265671,0.00251547,2488.0,2487.9,9.23936767]
[1730689265878,0.00251547,2488.0,2487.9,9.15899121]
[1730689266073,0.00251547,2488.0,2487.9,10.47784933]
[1730689266418,0.00251547,2488.0,2487.9,9.92784933]
[1730689266914,0.00251547,2488.0,2487.9,10.47784933]
[1730689267278,0.00251547,2488.0,2487.9,10.48784933]
[1730689267474,0.00251547,2488.0,2487.9,9.92784933]
[1730689268104,0.00251547,2488.0,2487.9,2.12105812]
[1730689268306,0.00251547,2488.0,2487.9,0.8022]
[1730689268884,0.00251547,2488.0,2487.9,0.84633746]
[1730689269108,0.00251547,2488.0,2487.9,4.63367867]
[1730689270037,0.00251547,2488.0,2487.9,8.73350646]
[1730689270188,0.00251547,2488.0,2487.9,4.63367867]
[1730689270389,0.00251547,2488.0,2487.9,5.90098254]
[1730689270609,0.00251547,2488.0,2487.9,4.63367867]
[1730689270818,0.00251547,2488.0,2487.9,8.73350646]
[1730689271130,0.00251547,2488.0,2487.9,9.20312867]
[1730689274107,0.00251547,2488.0,2487.9,9.22761727]
[1730689278117,0.0605933,2488.3,2488.2,4.56896]
[1730689278318,0.0605933,2488.3,2488.2,10.03610721]
[1730689278517,0.0605933,2488.3,2488.2,10.10417712]
[1730689278999,71.487,2488.8,2488.7,9.17550121]
[1730689279330,71.487,2488.8,2488.7,9.24264451]
[1730689279493,71.487,2488.8,2488.7,9.17550121]
[1730689279694,71.487,2488.8,2488.7,10.49588033]
[1730689283203,60.9644058,2488.8,2488.7,10.49588033]
[1730689284342,29.14832042,2488.8,2488.7,15.8871994]
[1730689284629,28.04258825,2488.8,2488.7,10.93588033]
[1730689286444,28.04258825,2488.8,2488.7,5.33853912]
[1730689287533,28.04258825,2488.8,2488.7,5.88853912]
[1730689289103,28.04258825,2488.8,2488.6,4.01829]
[1730689289347,28.04258825,2488.8,2488.7,4.01816]
[1730689289837,28.04258825,2488.8,2488.6,4.01829]
[1730689290013,28.04258825,2488.8,2488.6,4.01822]
[1730689290212,28.04258825,2488.8,2488.6,8.03644]
[1730689290424,28.04258825,2488.8,2488.7,4.01816]
[1730689290843,28.04258825,2488.8,2488.7,4.56816]
[1730689292446,28.04258825,2488.8,2488.7,4.01816]
[1730689292862,28.04258825,2488.8,2488.6,8.840104]
[1730689293144,28.04258825,2488.8,2488.7,4.01816]
[1730689293308,28.04258825,2488.8,2488.7,4.9021624]
[1730689293752,28.04258825,2488.8,2488.7,0.8840024]
[1730689294047,28.04258825,2488.8,2488.7,4.01816]
[1730689294808,28.04258825,2488.8,2488.7,5.1367354]
[1730689295246,28.04258825,2488.8,2488.7,8.92407661]
[1730689295545,0.0655933,2489.5,2488.7,8.92407661]
[1730689295546,0.0655933,2489.5,2489.4,0.01]
[1730689295753,0.0655933,2489.5,2489.4,8.36437121]
[1730689295951,0.0655933,2489.5,2489.4,4.57703]
[1730689296985,0.0655933,2489.5,2489.4,4.65734394]
[1730689297141,0.0655933,2489.5,2489.4,4.57703]
[1730689298936,0.0655933,2489.5,2489.4,4.56703]
[1730689299242,0.0655933,2489.5,2489.4,4.57703]
[1730689299641,0.0655933,2489.5,2489.4,4.56703]
[1730689299872,0.0655933,2489.5,2489.4,4.57703]
[1730689300043,0.005,2490.3,2489.8,4.01627]
[1730689300255,0.005,2490.3,2489.9,4.01619]
[1730689300864,0.005,2490.3,2489.7,4.01643]
[1730689301051,0.8268,2490.2,2489.7,4.01643]
[1730689301257,0.8268,2490.2,2489.7,4.01646]
[1730689301452,0.8268,2490.2,2489.7,8.03291]
[1730689301783,4.01633,2489.9,2489.1,4.01751]
[1730689301978,4.8432,2489.8,2488.9,4.01779]
[1730689302281,4.84351,2489.6,2488.7,4.01809]
[1730689302580,7.80439121,2489.4,2488.7,4.01809]
[1730689302743,0.8268,2489.3,2488.9,4.0178]
[1730689302939,0.8268,2489.3,2488.9,4.09814761]
[1730689303164,0.8268,2489.3,2489.1,4.01743]
[1730689303383,0.8268,2489.6,2489.2,4.01723]
[1730689303587,0.8268,2489.6,2488.9,4.01779]
[1730689303746,0.8268,2489.5,2488.8,4.01791]
[1730689303946,2.09156412,2489.5,2488.8,4.01791]
[1730689304149,0.8268,2489.5,2489.0,4.01754]
[1730689304656,0.8268,2489.5,2488.8,8.03578]
[1730689304888,0.8268,2489.5,2488.8,4.01785]
[1730689305389,0.8268,2489.5,2488.9,4.01773]
[1730689305547,0.8268,2489.3,2488.5,0.55]
[1730689305748,0.8268,2489.3,2488.8,4.01797]
[1730689305949,0.8268,2489.3,2489.0,4.01757]
[1730689306202,0.8268,2489.3,2489.0,4.01758]
[1730689306705,0.8268,2489.3,2488.9,4.01783]
[1730689306859,0.8268,2489.3,2489.0,4.01763]
[1730689307197,0.8268,2489.3,2488.9,4.01783]
[1730689307198,0.8268,2489.3,2488.9,4.01775]
[1730689307416,0.8268,2489.7,2489.0,4.01761]
[1730689307603,0.484329,2489.6,2488.9,4.01775]
[1730689307763,4.84373,2489.5,2488.7,4.01804]
[1730689307963,0.8268,2489.4,2488.7,4.01804]
[1730689308409,0.8268,2489.4,2488.8,4.01795]
[1730689308562,4.01704,2489.4,2488.5,8.03675]
[1730689308767,4.84416,2489.2,2488.5,4.01836]
[1730689309195,0.8268,2489.0,2488.4,0.47999527]
[1730689309497,0.8268,2489.0,2488.4,0.06026487]
[1730689309682,4.8445,2489.0,2488.4,0.06026487]
[1730689310461,0.8268,2488.9,2488.4,4.07880487]
[1730689310699,0.8268,2488.9,2488.5,0.0803613]
[1730689311012,0.8268,2488.9,2488.4,4.07887487]
[1730689311243,0.8268,2488.9,2488.5,0.0803613]
[1730689311541,0.8268,2488.9,2488.6,4.01822]
[1730689311702,0.8268,2489.3,2488.5,0.01]
[1730689312035,0.8268,2489.3,2488.7,4.01814]
[1730689312647,0.8268,2489.3,2488.8,4.01797]
[1730689313151,0.8268,2489.3,2488.5,0.56]
[1730689313453,0.8268,2489.3,2488.9,4.01776]
[1730689313810,0.8268,2489.3,2488.9,8.03549]
[1730689314149,0.8268,2489.3,2488.9,4.01773]
[1730689314642,0.8268,2489.3,2489.0,4.01766]
[1730689314838,0.8268,2489.3,2489.1,4.01742]
[1730689315632,0.8268,2489.3,2489.1,4.01751]
[1730689315838,0.8268,2489.6,2489.1,0.08034022]
[1730689316038,0.8268,2489.6,2489.5,4.01687]
[1730689316203,0.8268,2490.2,2489.5,4.01673]
[1730689316408,0.88631,2490.1,2489.5,4.01673]
[1730689316815,0.8268,2490.0,2489.6,4.01659]
[1730689317216,0.8268,2490.0,2489.5,4.01673]
[1730689317418,0.8268,2490.0,2489.5,8.03352]
[1730689317623,0.8268,2490.0,2489.5,4.01673]
[1730689317846,0.8268,2490.2,2489.6,4.01662]
[1730689318057,0.8268,2490.2,2489.6,8.03324]
[1730689318223,0.8268,2490.2,2489.6,4.01662]
[1730689318541,1.9142898,2490.2,2489.6,4.01662]
[1730689320052,5.1033498,2490.2,2489.4,4.01696]
[1730689320252,0.8268,2489.9,2489.2,4.01719]
[1730689320454,1.31109,2489.9,2489.3,4.01715]
[1730689320643,0.8268,2489.9,2489.3,4.01715]
[1730689321156,0.8268,2489.9,2489.4,4.01702]
[1730689321570,0.8268,2489.9,2489.4,4.01695]
[1730689321888,0.8268,2489.9,2489.5,4.01686]
[1730689322048,0.8268,2489.9,2489.4,4.01694]
[1730689322461,0.8268,2489.9,2489.5,4.01679]
[1730689322797,0.8268,2489.9,2489.6,4.01667]
[1730689323005,0.8268,2489.9,2489.5,8.03357]
[1730689323207,0.8268,2489.9,2489.6,4.01669]
[1730689323565,0.8268,2489.9,2489.3,4.01706]
[1730689323765,0.8268,2489.9,2489.5,4.01686]
[1730689324011,0.8268,2489.9,2489.0,4.01761]
[1730689324311,0.8268,2489.9,2489.4,4.01691]
[1730689324458,0.8268,2489.9,2489.6,4.0167]
[1730689324662,0.8268,2489.9,2489.7,0.08032228]
[1730689325137,0.8268,2490.2,2489.8,4.01631]
[1730689325702,0.8268,2490.1,2489.2,0.02]
[1730689325998,0.8268,2490.1,2489.4,0.55]
[1730689326201,0.005,2490.3,2490.0,4.01606]
[1730689326415,0.005,2490.3,2490.1,0.08030953]
[1730689326771,0.005,2490.3,2490.0,4.01597]
[1730689326969,0.005,2490.3,2490.2,4.01574]
[1730689327214,0.005,2490.3,2490.1,4.01575]
[1730689327423,0.005,2490.3,2490.2,4.01574]
[1730689328298,0.005,2490.3,2490.1,4.01575]
[1730689328616,0.81,2490.2,2489.5,4.02679]
[1730689328777,0.81,2490.2,2490.1,4.0159]
[1730689329287,0.81,2490.2,2490.0,4.01599]
[1730689329671,0.81,2490.2,2490.1,0.08030959]
[1730689330033,0.81,2490.2,2490.1,4.09620959]
[1730689330188,0.81,2490.2,2490.1,0.08030959]
[1730689330391,0.81,2490.2,2490.0,4.01605]
[1730689331090,0.81,2490.2,2490.0,8.03201]
[1730689331297,0.81,2490.2,2489.8,4.56627]
[1730689331490,0.81,2490.2,2489.7,0.55]
[1730689331712,0.81,2490.2,2489.8,4.09668359]
[1730689331909,0.005,2490.3,2489.8,4.09668359]
[1730689331910,0.005,2490.3,2490.1,4.01579]
[1730689332219,0.005,2490.3,2490.2,4.01574]
[1730689333399,0.0605933,2490.7,2490.6,0.01]
[1730689333711,0.0605933,2490.7,2490.6,8.34172931]
[1730689333888,0.0605933,2490.7,2490.6,4.56509]
[1730689335748,0.0605933,2490.7,2490.5,4.01517]
[1730689336090,0.0605933,2490.7,2490.6,4.64537832]
[1730689336433,0.0605933,2490.7,2490.6,4.56509]
[1730689336934,0.0605933,2490.7,2490.4,0.55]
[1730689337225,0.0605933,2490.7,2490.5,4.01517]
[1730689337650,0.0605933,2490.7,2490.6,4.01509]
[1730689338157,0.0605933,2490.7,2490.5,4.01515]
[1730689338568,0.0605933,2490.7,2490.4,0.55]
[1730689338713,0.0605933,2490.7,2490.5,4.01525]
[1730689339113,0.0605933,2490.7,2490.6,4.01509]
[1730689339354,0.0605933,2490.7,2490.5,4.01516]
[1730689339921,0.81,2490.6,2489.7,0.48484076]
[1730689340144,0.81,2490.6,2489.8,0.53465207]
[1730689340463,0.81,2490.6,2490.1,4.01582]
[1730689340847,0.81,2490.6,2490.1,8.03162]
[1730689341017,0.81,2490.6,2490.2,4.01569]
[1730689341840,0.81,2490.6,2490.1,4.56585]
[1730689342151,0.81,2490.6,2490.0,4.01598]
[1730689342563,4.82535,2490.5,2489.8,4.50109076]
[1730689342914,0.81,2490.5,2489.9,4.01612]
[1730689343151,4.82526,2490.5,2489.9,0.08030969]
[1730689343459,0.81,2490.5,2489.9,4.0162]
[1730689344155,0.7836,2490.3,2489.7,0.55]
[1730689344359,0.7836,2490.3,2489.7,4.56654]
[1730689344655,0.7836,2490.3,2489.8,4.01636]
[1730689345229,0.7836,2490.3,2489.8,4.01623]
[1730689345743,0.7836,2490.3,2489.7,0.55]
[1730689345947,0.7836,2490.2,2489.6,4.01655]
[1730689346151,4.01592,2490.1,2489.4,4.01691]
[1730689346324,0.7836,2490.0,2489.4,8.03384]
[1730689346924,0.7836,2490.0,2489.2,0.48484076]
[1730689347148,4.79978,2490.0,2489.3,4.01704]
[1730689347525,0.56969972,2490.3,2489.3,4.01704]
[1730689347526,0.7836,2490.6,2490.1,4.01588]
[1730689347865,0.7836,2490.6,2489.7,0.08031017]
[1730689348030,0.7836,2490.6,2490.0,4.01597]
[1730689348228,4.79874,2490.6,2489.8,4.01626]
[1730689348450,4.79874,2490.6,2489.9,0.0803101]
[1730689348930,0.7836,2490.6,2490.0,0.55]
[1730689349128,0.7836,2490.6,2489.9,0.0803101]
[1730689349129,0.0605933,2490.7,2490.5,4.01512]
[1730689349965,0.0605933,2490.7,2490.6,4.01509]
[1730689351644,0.0605933,2490.7,2490.6,4.6453779]
[1730689351850,0.0605933,2490.7,2490.6,5.05443076]
[1730689352333,0.0605933,2490.7,2490.6,4.56509]
[1730689353559,0.05457065,2490.7,2490.6,4.56509]
[1730689353869,0.05457065,2490.7,2490.6,4.6453707]
[1730689354571,0.05457065,2490.7,2490.6,4.56509]
[1730689357857,0.005,2491.2,2491.0,4.01444]
[1730689358086,0.005,2491.2,2490.9,4.0145]
[1730689358674,0.005,2491.2,2490.7,4.01486]
[1730689358916,0.005,2491.2,2490.6,4.56509]
[1730689359196,0.005,2491.2,2490.7,4.01485]
[1730689359385,0.005,2491.2,2490.8,4.01468]
[1730689359695,0.005,2491.2,2490.9,0.08028264]
[1730689360610,0.7966,2491.1,2490.7,0.08028274]
[1730689360805,0.7966,2491.1,2490.7,4.01477]
[1730689361113,0.7966,2491.1,2490.8,4.0949036]
[1730689361410,0.7966,2491.1,2490.4,4.0153]
[1730689361587,0.7966,2490.9,2490.2,4.01559]
[1730689361910,0.7966,2490.9,2490.6,4.01506]
[1730689362116,0.7966,2490.9,2490.7,0.08029049]
[1730689362970,0.7966,2490.9,2490.4,4.01541]
[1730689363282,0.7966,2490.9,2490.3,4.01558]
[1730689363482,0.7966,2490.9,2490.5,4.01518]
[1730689363713,0.7966,2490.9,2490.6,0.08029085]
[1730689364005,0.7966,2490.9,2490.6,4.01499]
[1730689364569,0.7966,2491.1,2490.7,0.55]
[1730689364805,0.7966,2491.1,2490.6,4.56509]
[1730689364975,0.005,2491.2,2490.8,4.01464]
[1730689365174,0.005,2491.2,2490.9,0.55]
[1730689365680,0.005,2491.2,2491.0,4.01436]
[1730689366668,0.005,2491.2,2491.0,4.01445]
[1730689366900,0.005,2491.2,2491.1,4.01429]
[1730689367168,0.005,2491.2,2491.0,4.01445]
[1730689367506,0.005,2491.2,2491.0,4.01436]
[1730689367715,0.005,2491.2,2491.1,4.01429]
[1730689369031,0.005,2491.2,2491.1,4.56429]
[1730689369168,0.005,2491.2,2491.1,0.55]
[1730689369374,0.005,2491.2,2491.0,4.01432]
[1730689371796,0.005,2491.2,2491.0,0.55]
[1730689372005,0.005,2491.2,2490.9,0.55]
[1730689372198,0.005,2491.2,2491.0,4.01443]
[1730689372889,0.005,2491.2,2491.1,4.01429]
[1730689373577,0.005,2491.2,2491.0,4.01443]
[1730689373813,0.005,2491.2,2491.1,4.01429]
[1730689374377,0.005,2491.2,2491.1,0.55]
[1730689374577,0.005,2491.2,2491.1,4.56429]
[1730689375803,0.005,2491.2,2491.1,0.55]
[1730689376443,0.005,2491.2,2491.1,4.56429]
[1730689378035,0.005,2491.2,2491.1,0.55]
[1730689378215,0.005,2491.2,2491.1,4.56429]
[1730689380509,0.0605933,2491.9,2491.8,4.01316]
[1730689380816,0.0605933,2491.9,2491.8,4.64341011]
[1730689381845,0.0605933,2491.9,2491.5,3.148]
[1730689382148,0.0605933,2491.9,2490.9,1.6506314]
[1730689382149,0.7966,2491.7,2491.1,4.01419]
[1730689382357,0.7966,2491.7,2491.3,4.01388]
[1730689382662,0.7966,2491.4,2490.9,4.01456]
[1730689382826,0.7966,2491.4,2490.4,4.0154]
[1730689382827,0.7925,2491.4,2490.4,4.0154]
[1730689383026,4.01479,2490.8,2490.5,1.606683]
[1730689383229,4.01445,2491.0,2489.8,7.79221228]
[1730689383441,4.01477,2490.8,2489.8,7.79221228]
[1730689383760,4.01493,2490.7,2489.8,4.0163]
[1730689383943,4.01493,2490.7,2490.0,4.01604]
[1730689384448,4.81757,2490.9,2490.2,4.01565]
[1730689384449,4.01469,2490.9,2490.2,4.01565]
[1730689384652,4.01439,2491.1,2490.3,0.08029893]
[1730689384954,4.415829,2491.1,2490.3,0.08029893]
[1730689385153,8.430269,2491.1,2490.3,0.08029893]
[1730689385366,4.01445,2491.0,2490.3,4.09586893]
[1730689385531,4.01401,2491.3,2490.6,4.01503]
[1730689385852,3.01,2491.7,2490.4,0.55]
[1730689385853,0.7966,2491.4,2490.8,4.01466]
[1730689386025,0.7966,2491.4,2490.8,8.02934]
[1730689386231,0.7966,2491.4,2490.8,4.01466]
[1730689386443,0.7966,2491.4,2490.9,4.01459]
[1730689386646,0.7966,2491.4,2490.9,0.55]
[1730689386928,0.7966,2491.4,2490.8,8.02942]
[1730689387236,0.7966,2491.4,2490.9,4.56453]
[1730689387616,0.7966,2491.4,2490.8,0.55]
[1730689387818,0.7966,2491.0,2490.4,0.55]
[1730689388060,0.7966,2491.0,2490.4,4.5653]
[1730689388858,0.7966,2491.0,2490.5,4.01521]
[1730689389973,0.7966,2491.0,2490.1,0.41952237]
[1730689390153,4.01477,2490.9,2490.2,4.56561]
[1730689390364,4.01477,2490.9,2490.1,0.41952237]
[1730689390365,4.80055,2490.7,2489.8,4.01627]
[1730689390527,4.80055,2490.7,2489.8,8.03256]
[1730689390528,4.01521,2490.6,2489.8,8.03256]
[1730689390879,0.7855,2490.2,2489.4,7.16495]
[1730689391044,4.01625,2489.9,2489.1,0.47063419]
[1730689391252,4.47270983,2490.3,2489.0,8.03514]
[1730689391253,4.01656,2489.7,2489.0,8.03514]
[1730689391558,4.01673,2489.6,2488.9,4.43737574]
[1730689391940,4.01656,2489.7,2488.9,4.43737574]
[1730689391941,4.01704,2489.4,2488.9,0.41959574]
[1730689392274,0.7855,2489.2,2488.9,0.41959574]
[1730689392482,4.01611,2490.0,2489.2,4.01732]
[1730689392629,0.7855,2489.9,2489.2,4.01732]
[1730689392827,0.7855,2489.9,2489.3,0.08032748]
[1730689393033,0.7855,2489.9,2489.5,4.01672]
[1730689393233,0.7855,2489.9,2489.1,4.01744]
[1730689393532,8.03325,2489.7,2488.9,4.43729574]
[1730689393917,0.7855,2489.5,2488.9,0.41959574]
[1730689394230,4.80201,2489.8,2489.0,4.01767]
[1730689394627,4.01656,2489.7,2489.0,4.01767]
[1730689394872,4.80201,2489.8,2489.1,4.0175]
[1730689395241,5.282211,2489.8,2489.0,4.01759]
[1730689395442,4.01707,2489.4,2488.6,4.50775661]
[1730689395654,4.01744,2489.2,2488.6,0.48959661]
[1730689395958,4.01744,2489.2,2488.4,4.07881487]
[1730689396148,4.80269,2489.3,2488.6,4.01824]
[1730689396470,4.01755,2489.1,2488.4,4.07881487]
[1730689397237,4.0177,2489.0,2488.4,4.07881487]
[1730689397579,4.01753,2489.1,2488.5,0.08035927]
[1730689397995,4.0177,2489.0,2488.5,0.08035927]
[1730689398295,0.7855,2488.9,2488.4,0.06026487]
[1730689398505,4.01841,2488.6,2488.4,0.06026487]
[1730689398970,4.80398,2488.5,2488.4,0.06026487]
[1730689399175,0.7855,2488.5,2488.4,0.06026487]
[1730689399793,4.80398,2488.5,2488.4,0.06026487]
[1730689400388,4.01874,2488.4,2487.6,4.01982]
[1730689400596,4.01898,2488.2,2487.6,4.01982]
[1730689400888,0.7855,2488.0,2487.4,4.02015]
[1730689401093,0.7855,2488.0,2487.6,4.01981]
[1730689401291,0.7855,2488.0,2487.6,8.03965]
[1730689401449,0.7855,2488.0,2487.6,4.01981]
[1730689401992,0.7855,2488.5,2488.0,4.01917]
[1730689402162,0.7855,2488.5,2488.3,4.01879]
[1730689402362,0.7855,2489.1,2488.3,4.01879]
[1730689402582,1.669542,2489.1,2488.5,4.01848]
[1730689402960,5.687142,2489.1,2488.4,4.01859]
[1730689403156,5.687142,2489.1,2488.5,4.0184]
[1730689403353,5.687142,2489.1,2488.5,8.0368]
[1730689403555,4.8031,2489.1,2488.5,4.01839]
[1730689403791,4.8031,2489.1,2488.5,4.01838]
[1730689404005,4.01775,2489.0,2488.3,4.01869]
[1730689404195,4.8031,2489.1,2488.3,4.01869]
[1730689404380,4.01785,2488.9,2488.3,4.01869]
[1730689404580,4.78968,2488.8,2488.1,8.03807]
[1730689404806,4.01844,2488.6,2488.0,4.01925]
[1730689405095,4.01849,2488.5,2487.9,4.01936]
[1730689405259,4.01849,2488.5,2487.9,8.03871]
[1730689405456,4.01883,2488.3,2487.7,4.01967]
[1730689405858,4.01928,2488.1,2487.6,0.41992142]
[1730689406098,0.7716,2487.9,2487.3,4.02027]
[1730689406267,4.01928,2488.1,2487.5,4.01998]
[1730689406699,4.01943,2488.0,2487.4,4.02026]
[1730689406862,4.01954,2487.9,2487.3,4.02032]
[1730689407403,4.01922,2488.1,2487.3,4.02042]
[1730689407696,4.01922,2488.1,2487.5,4.02008]
[1730689407697,4.421142,2488.1,2487.5,4.02008]
[1730689408004,8.03845,2488.1,2487.5,4.02008]
[1730689408298,4.01929,2488.0,2487.5,4.02008]
[1730689408495,4.01922,2488.1,2487.5,8.04016]
[1730689408694,4.0289,2488.3,2487.1,0.0605933]
[1730689408695,4.0189,2488.3,2487.6,4.01981]
[1730689409201,4.01852,2488.5,2487.5,0.55]
[1730689409503,4.79035,2488.4,2487.8,4.01947]
[1730689410009,4.79035,2488.4,2487.4,0.776]
[1730689410010,0.7716,2488.4,2488.1,0.55]
[1730689410301,0.7716,2488.7,2488.3,4.01874]
[1730689410504,0.7716,2488.7,2488.4,4.01862]
[1730689410713,0.7716,2488.7,2488.3,0.55]
[1730689410867,4.78978,2488.7,2488.3,0.55]
[1730689411193,0.7716,2488.7,2488.3,0.55]
[1730689411568,0.7716,2488.7,2488.1,0.55]
[1730689411759,0.7716,2488.7,2488.3,4.56872]
[1730689412365,0.7716,2488.7,2488.2,4.01896]
[1730689412705,0.7716,2488.7,2488.3,0.55]
[1730689412875,0.7716,2488.7,2487.6,5.65859159]
[1730689413066,4.01834,2488.6,2487.6,1.19588176]
[1730689413394,4.01874,2488.4,2487.8,4.01956]
[1730689413697,0.7716,2488.2,2487.7,8.03925]
[1730689413882,0.7716,2488.2,2487.7,4.01968]
[1730689414089,0.7716,2488.2,2487.8,4.01958]
[1730689414797,0.7716,2488.2,2487.6,8.03962]
[1730689414963,0.7716,2488.2,2487.6,4.0198]
[1730689414964,4.79067,2488.2,2487.6,4.0198]
[1730689415164,4.79066,2488.2,2487.7,0.55]
[1730689415378,4.79065,2488.2,2487.7,0.55]
[1730689415693,4.79065,2488.2,2487.5,0.55]
[1730689415901,4.79065,2488.2,2487.6,4.01991]
[1730689416064,0.7716,2488.2,2487.8,4.01952]
[1730689416471,0.7716,2488.2,2487.9,4.01944]
[1730689416672,0.7716,2488.2,2487.8,4.64998264]
[1730689417219,0.7716,2488.2,2487.8,4.5696]
[1730689417913,0.7716,2488.4,2488.0,4.01918]
[1730689418120,0.7716,2488.4,2488.0,8.03839]
[1730689418412,0.7716,2488.4,2488.0,4.01913]
[1730689418635,0.7889,2488.7,2488.4,4.01864]
[1730689418992,0.7889,2488.7,2488.5,4.01842]
[1730689419193,0.7889,2488.7,2488.3,4.5688]
[1730689419680,0.7889,2488.7,2488.5,4.01847]
[1730689420322,4.0173,2489.3,2488.6,0.55]
[1730689420543,4.01745,2489.2,2488.6,4.56821]
[1730689420818,0.7889,2489.1,2488.6,4.56821]
[1730689421029,0.7889,2489.1,2488.7,4.01809]
[1730689421218,0.7889,2489.1,2488.6,0.55]
[1730689421427,4.8065,2489.1,2488.7,0.55]
[1730689421925,0.7889,2489.1,2488.7,0.55]
[1730689422283,0.7889,2489.1,2488.8,4.01798]
[1730689422520,0.7889,2489.1,2488.7,0.55]
[1730689422521,0.7889,2489.1,2488.7,4.56815]
[1730689422725,0.7889,2489.1,2488.7,0.55]
[1730689422896,0.7889,2489.1,2488.7,4.56815]
[1730689423103,0.7889,2489.1,2488.9,4.01782]
[1730689423404,0.7889,2489.4,2489.0,4.56765]
[1730689423729,0.7889,2489.4,2489.0,0.55]
[1730689424056,0.7889,2489.7,2489.5,4.01686]
[1730689424554,0.7889,2489.7,2489.4,0.55]
[1730689425159,0.7889,2489.7,2489.3,4.01708]
[1730689425519,0.7889,2489.7,2489.3,8.03418]